[Event "FIN-ch 2019"]
[Site "Helsinki"]
[Date "2019.06.13"]
[Round "4.4"]
[White "Jarvenpaa, Jari"]
[Black "Ronka, Erik"]
[Result "0-1"]
[ECO "B14"]
[WhiteElo "2204"]
[BlackElo "2270"]
[Annotator "RC"]
[PlyCount "120"]
[EventDate "2019.06.10"]
[EventType "swiss"]
[EventCountry "FIN"]
[SourceTitle "playchess.com"]
[Source "ChessBase"]
[SourceQuality "1"]
[TimeControl "40/5400+30:1800+30"]

1. e4 {[%emt 1:30:30]} c6 {[%emt 1:30:30]} 2. d4 {[%emt 0:00:30]} d5 {[%emt 0:00:30]} 3. exd5 {[%emt 0:00:30]} cxd5 {[%emt 0:00:30]} 4. c4 {[%emt 0:00:30]} Nf6 {[%emt 0:00:30]} 5. Nc3 {[%emt 0:00:30]} g6 {[%emt 0:00:30]} 6. Qb3 {[%emt 0:00:30]} Bg7 {[%emt 0:00:30]} 7. cxd5 {[%emt 0:00:30]} O-O {[%emt 0:00:30]} 8. g3 {[%emt 0:00:30]} e6 {[%emt 0:00:30]} 9. dxe6 {[%emt 0:00:30]} Bxe6 {[%emt 0:00:30]} 10. Qxb7 {[%emt 0:00:30]} Nbd7 {[%emt 0:00:30]} 11. Bg2 {[%emt 0:00:30]} Rb8 {[%emt 0:00:30]} 12. Qxa7 {[%emt 0:00:30]} Re8 {[%emt 0:00:30]} 13. Nge2 {[%emt 0:00:30]} Bc4 {[%emt 0:00:30]} 14. Bf3 {[%emt 0:00:30]} Nd5 {[%emt 0:00:30]} 15. Bxd5 {[%emt 0:00:30]} Rxe2+ {[%emt 0:00:30]} 16. Kd1 {[%emt 0:00:30]} Re7 {[%emt 0:00:30]} 17. Bxc4 Nb6 18. Qxe7 Qxe7 19. Bd3 Bxd4 20. Bd2 {[%emt 0:02:00]} Bxf2 {[%emt 0:02:00]} 21. Kc2 {[%emt 0:00:30]} Qc5 {[%emt 0:00:30]} 22. Rac1 {[%emt 0:00:30]} Ra8 {[%emt 0:00:30]} 23. Kb1 {[%emt 0:00:30]} Qd4 {[%emt 0:00:30]} 24. Be4 {[%emt 0:00:30]} Rc8 {[%emt 0:00:30]} 25. Bb7 {[%emt 0:00:30]} Rb8 {[%emt 0:00:30]} 26. Rhd1 {[%emt 0:00:30]} Qg7 {[%emt 0:00:30]} 27. Bf4 {[%emt 0:00:30]} Re8 {[%emt 0:00:30]} 28. Ne4 {[%emt 0:00:30]} Bd4 {[%emt 0:00:30]} 29. b3 {[%emt 0:00:30]} h6 {[%emt 0:00:30]} 30. Rc2 {[%emt 0:00:30]} g5 {[%emt 0:00:30]} 31. Nd6 {[%emt 0:00:30]} Rd8 {[%emt 0:00:30]} 32. Nf5 {[%emt 0:00:30]} Qf6 {[%emt 0:00:30]} 33. Rxd4 {[%emt 0:00:30]} Rxd4 {[%emt 0:00:30]} 34. Nxd4 {[%emt 0:00:30]} gxf4 {[%emt 0:00:30]} 35. Nf3 {[%emt 0:00:30]} Qe7 {[%emt 0:00:30]} 36. Bc6 {[%emt 0:00:30]} fxg3 {[%emt 0:00:30]} 37. hxg3 {[%emt 0:00:30]} Qd6 {[%emt 0:00:30]} 38. a4 {[%emt 0:00:30]} Qa3 {[%emt 0:00:30]} 39. Nd2 {[%emt 0:00:30]} Kg7 {[%emt 0:00:30]} 40. Bb5 {[%emt 0:00:30]} Nd5 {[%emt 0:00:30]} 41. Be2 {[%emt 0:30:30]} Qb4 {[%emt 0:30:30]} 42. Kb2 {[%emt 0:00:30]} Ne3 {[%emt 0:00:30]} 43. Rc3 {[%emt 0:00:30]} Qd4 {[%emt 0:00:30]} 44. Nf3 {[%emt 0:00:30]} Qf6 {[%emt 0:00:30]} 45. Nd2 {[%emt 0:00:30]} Nd5 {[%emt 0:00:30]} 46. Nb1 {[%emt 0:00:30]} Qd4 {[%emt 0:00:30]} 47. Kc2 {[%emt 0:00:30]} Nxc3 {[%emt 0:00:30]} 48. Nxc3 {[%emt 0:00:30]} Qc5 {[%emt 0:00:30]} 49. Bc4 {[%emt 0:00:30]} f5 {[%emt 0:00:30]} 50. Ne2 {[%emt 0:00:30]} Qb4 {[%emt 0:00:30]} 51. Kd3 {[%emt 0:00:30]} Kf6 {[%emt 0:00:30]} 52. Nc3 {[%emt 0:00:30]} Qd6+ {[%emt 0:00:30]} 53. Nd5+ {[%emt 0:00:30]} Kg5 {[%emt 0:00:30]} 54. a5 {[%emt 0:00:30]} Qxg3+ {[%emt 0:00:30]} 55. Kd2 {[%emt 0:00:30]} Qf2+ {[%emt 0:00:30]} 56. Kd1 {[%emt 0:00:30]} h5 {[%emt 0:00:30]} 57. a6 {[%emt 0:00:30]} h4 {[%emt 0:00:30]} 58. Nb4 {[%emt 0:00:30]} h3 {[%emt 0:00:30]} 59. Nd3 {[%emt 0:00:30]} Qd4 {[%emt 0:00:30]} 60. Ke2 {[%emt 0:00:30]} h2 {[%emt 0:00:30]} 0-1

[Event "FIN-ch 2019"]
[Site "Helsinki"]
[Date "2019.06.13"]
[Round "4.5"]
[White "Lahdelma, Henri"]
[Black "Agopov, Mikael"]
[Result "*"]
[ECO "D85"]
[WhiteElo "2188"]
[BlackElo "2432"]
[Annotator "NA"]
[PlyCount "59"]
[EventDate "2019.06.10"]
[EventType "swiss"]
[EventCountry "FIN"]
[SourceTitle "playchess.com"]
[Source "ChessBase"]
[SourceQuality "1"]
[TimeControl "40/5400+30:1800+30"]

1. d4 {[%emt 0:00:00]} Nf6 {[%emt 0:00:00]} 2. c4 {[%emt 0:00:00]} g6 {[%emt 0:00:00]} 3. Nc3 {[%emt 0:00:00]} d5 {[%emt 0:00:00]} 4. cxd5 {[%emt 0:00:00]} Nxd5 {[%emt 0:00:00]} 5. Bd2 {[%emt 0:00:10]} Nb6 {[%emt 0:00:00]} 6. Nf3 {[%emt 0:00:17]} Nc6 {[%emt 0:02:21]} 7. Bg5 {[%emt 0:00:51]} Bg7 {[%emt 0:00:11]} 8. e3 {[%emt 0:00:06]} O-O {[%emt 0:00:23]} 9. Bb5 {[%emt 0:01:02]} Na5 {[%emt 0:08:36]} 10. O-O {[%emt 0:00:32]} Nac4 {[%emt 0:04:35]} 11. Rc1 {[%emt 0:08:27]} c6 {[%emt 0:02:15]} 12. Bxc4 {[%emt 0:00:29]} Nxc4 {[%emt 0:00:03]} 13. Qe2 {[%emt 0:02:56]} Nb6 {[%emt 0:12:20]} 14. Rfd1 {[%emt 0:08:48]} Re8 {[%emt 0:07:18]} 15. e4 {[%emt 0:17:27]} Be6 {[%emt 0:08:58]} 16. b3 {[%emt 0:03:05]} a5 {[%emt 0:01:41]} 17. Qe3 {[%emt 0:02:05]} a4 {[%emt 0:00:53]} 18. bxa4 {[%emt 0:12:35]} Nxa4 {[%emt 0:00:52]} 19. Nxa4 {[%emt 0:00:24]} Rxa4 {[%emt 0:00:25]} 20. d5 {[%emt 0:00:16]} cxd5 {[%emt 0:06:08]} 21. exd5 {[%emt 0:00:08]} Bd7 {[%emt 0:00:08]} 22. d6 {[%emt 0:03:36]} f6 {[%emt 0:00:43]} 23. dxe7 {[%emt 0:01:26]} Qxe7 {[%emt 0:00:18]} 24. Qb3+ {[%emt 0:02:58]} Kh8 {[%emt 0:02:27]} 25. Qxb7 {[%emt 0:13:51]} Re4 {[%emt 0:07:16]} 26. Be3 {[%emt 0:08:39]} Ba4 {[%emt 0:02:52]} 27. Qxe7 {[%emt 0:00:07]} Re6 28. Qxe8+ Rxe8 {[%emt 0:00:42]} 29. Rd4 {[%emt 0:01:30]} Re7 {[%emt 0:03:17]} 30. Rdc4 {[%emt 0:01:07]} *

[Event "FIN-ch 2019"]
[Site "Helsinki"]
[Date "2019.06.13"]
[Round "4.6"]
[White "Norri, Joose"]
[Black "Ristoja, Samu"]
[Result "1-0"]
[ECO "D43"]
[WhiteElo "2271"]
[BlackElo "2197"]
[Annotator "NA"]
[PlyCount "69"]
[EventDate "2019.06.10"]
[EventType "swiss"]
[EventCountry "FIN"]
[SourceTitle "playchess.com"]
[Source "ChessBase"]
[SourceQuality "1"]
[TimeControl "40/5400+30:1800+30"]

1. d4 {[%emt 1:30:30]} Nf6 {[%emt 1:30:30]} 2. c4 {[%emt 0:00:30]} e6 {[%emt 0:00:30]} 3. Nf3 {[%emt 0:00:30]} d5 {[%emt 0:00:30]} 4. Nc3 {[%emt 0:00:30]} c6 {[%emt 0:00:30]} 5. Bg5 {[%emt 0:00:30]} h6 {[%emt 0:00:30]} 6. Bh4 {[%emt 0:00:30]} g5 {[%emt 0:00:30]} 7. Bg3 {[%emt 0:00:30]} Ne4 {[%emt 0:00:30]} 8. e3 {[%emt 0:00:30]} Bb4 {[%emt 0:00:30]} 9. Qb3 {[%emt 0:00:30]} Qa5 {[%emt 0:00:30]} 10. Rc1 {[%emt 0:00:30]} Nd7 {[%emt 0:00:30]} 11. Bd3 {[%emt 0:00:30]} f5 {[%emt 0:00:30]} 12. Bxe4 {[%emt 0:00:30]} dxe4 {[%emt 0:00:30]} 13. Nd2 {[%emt 0:00:30]} O-O {[%emt 0:00:30]} 14. c5 {[%emt 0:00:30]} Nf6 {[%emt 0:00:30]} 15. f3 {[%emt 0:00:30]} exf3 16. gxf3 Nd5 17. Nc4 Qd8 18. Bd6 Rf7 19. Ke2 {[%emt 0:02:00]} Bxc3 {[%emt 0:02:30]} 20. bxc3 {[%emt 0:00:30]} b6 {[%emt 0:00:30]} 21. Ne5 {[%emt 0:00:30]} Rb7 {[%emt 0:00:30]} 22. Qc2 {[%emt 0:00:30]} bxc5 {[%emt 0:00:30]} 23. dxc5 {[%emt 0:00:30]} Qa5 {[%emt 0:00:30]} 24. e4 {[%emt 0:00:30]} Nf4+ {[%emt 0:00:30]} 25. Kf2 {[%emt 0:00:30]} Bd7 {[%emt 0:00:30]} 26. Rb1 {[%emt 0:00:30]} Rxb1 {[%emt 0:00:30]} 27. Rxb1 {[%emt 0:00:30]} Bc8 {[%emt 0:00:30]} 28. h4 {[%emt 0:00:30]} Ba6 {[%emt 0:00:30]} 29. hxg5 {[%emt 0:00:30]} hxg5 {[%emt 0:00:30]} 30. exf5 {[%emt 0:00:30]} exf5 {[%emt 0:00:30]} 31. Rg1 {[%emt 0:00:30]} Nh3+ {[%emt 0:00:30]} 32. Kg2 {[%emt 0:00:30]} g4 {[%emt 0:00:30]} 33. fxg4 {[%emt 0:00:30]} Nf4+ {[%emt 0:00:30]} 34. Kh1 {[%emt 0:00:30]} Ne6 {[%emt 0:00:30]} 35. gxf5+ {[%emt 0:00:30]} 1-0

[Event "FIN-ch 2019"]
[Site "Helsinki"]
[Date "2019.06.13"]
[Round "4.7"]
[White "Lindholm, Jere"]
[Black "Tiitta, Sauli"]
[Result "0-1"]
[ECO "B12"]
[WhiteElo "2145"]
[BlackElo "2214"]
[Annotator "NA RC"]
[PlyCount "120"]
[EventDate "2019.06.10"]
[EventType "swiss"]
[EventCountry "FIN"]
[SourceTitle "playchess.com"]
[Source "ChessBase"]
[SourceQuality "1"]
[TimeControl "40/5400+30:1800+30"]

1. e4 {[%emt 0:00:00]} c6 {[%emt 0:07:31]} 2. d4 {[%emt 0:00:00]} d5 {[%emt 0:00:07]} 3. e5 {[%emt 0:00:00]} Bf5 {[%emt 0:00:11]} 4. Nf3 {[%emt 0:00:00]} e6 {[%emt 0:00:07]} 5. Be2 {[%emt 0:00:00]} Nd7 {[%emt 0:00:09]} 6. O-O {[%emt 0:00:01]} h6 {[%emt 0:00:06]} 7. Nbd2 {[%emt 0:00:06]} g5 {[%emt 0:00:14]} 8. Nb3 {[%emt 0:04:27]} Qc7 {[%emt 0:03:46]} 9. Ne1 {[%emt 0:04:34]} O-O-O {[%emt 0:00:55]} 10. f4 {[%emt 0:11:46]} f6 {[%emt 0:03:24]} 11. Nf3 {[%emt 0:01:13]} Be4 {[%emt 0:02:50]} 12. Kh1 {[%emt 0:07:23]} Ne7 {[%emt 0:08:51]} 13. exf6 {[%emt 0:04:25]} Nxf6 {[%emt 0:05:22]} 14. Ne5 {[%emt 0:00:09]} Nf5 {[%emt 0:04:36]} 15. Bd3 {[%emt 0:13:36]} Qg7 {[%emt 0:04:09]} 16. Bxe4 {[%emt 0:07:47]} Nxe4 {[%emt 0:00:20]} 17. c3 {[%emt 0:00:12]} h5 {[%emt 0:02:04]} 18. fxg5 {[%emt 0:05:38]} Bd6 {[%emt 0:11:00]} 19. Bf4 {[%emt 0:02:16]} h4 {[%emt 0:24:03]} 20. Kg1 {[%emt 0:00:17]} Rhg8 {[%emt 0:05:22]} 21. Qe2 {[%emt 0:07:21]} Bxe5 {[%emt 0:11:37]} 22. Bxe5 {[%emt 0:00:07]} Qxg5 {[%emt 0:00:06]} 23. Bf4 {[%emt 0:00:07]} Qg6 {[%emt 0:00:22]} 24. Nc5 {[%emt 0:06:28]} h3 {[%emt 0:02:39]} 25. Nxe4 {[%emt 0:14:52]} Qxg2+ {[%emt 0:00:05]} 26. Qxg2 {[%emt 0:00:05]} Rxg2+ {[%emt 0:00:21]} 27. Kh1 {[%emt 0:00:04]} dxe4 {[%emt 0:00:02]} 28. Rae1 {[%emt 0:00:47]} Rxb2 {[%emt 0:00:51]} 29. Rxe4 {[%emt 0:00:05]} Kd7 {[%emt 0:00:10]} 30. Rfe1 {[%emt 0:00:39]} Re8 {[%emt 0:00:34]} 31. R4e2 {[%emt 0:03:18]} Rxe2 {[%emt 0:00:11]} 32. Rxe2 {[%emt 0:00:06]} Rg8 {[%emt 0:00:56]} 33. Rf2 {[%emt 0:02:53]} Rg4 {[%emt 0:00:04]} 34. Rf3 {[%emt 0:00:40]} Nh4 {[%emt 0:00:06]} 35. Rf2 {[%emt 0:00:11]} Ng2 {[%emt 0:00:12]} 36. Bg3 {[%emt 0:00:33]} Ke7 {[%emt 0:00:51]} 37. Rf3 {[%emt 0:01:32]} Re4 {[%emt 0:00:15]} 38. Bf2 {[%emt 0:00:25]} Rf4 {[%emt 0:00:34]} 39. Rxf4 {[%emt 0:04:01]} Nxf4 {[%emt 0:00:05]} 40. Bh4+ {[%emt 0:00:17]} Kf7 {[%emt 0:00:17]} 41. Kg1 {[%emt 0:30:09]} Kg6 {[%emt 0:30:48]} 42. Kf2 {[%emt 0:00:26]} Kf5 {[%emt 0:00:52]} 43. Kf3 {[%emt 0:00:18]} b5 {[%emt 0:00:15]} 44. Be1 {[%emt 0:00:31]} a5 {[%emt 0:02:06]} 45. Bd2 {[%emt 0:00:21]} Nd5 {[%emt 0:00:32]} 46. Kg3 {[%emt 0:01:02]} Ke4 {[%emt 0:02:15]} 47. Kxh3 {[%emt 0:00:16]} Kd3 {[%emt 0:00:08]} 48. Be1 {[%emt 0:00:08]} Kc2 {[%emt 0:01:02]} 49. Kg4 {[%emt 0:00:00]} a4 {[%emt 0:00:00]} 50. h4 {[%emt 0:00:00]} a3 {[%emt 0:00:00]} 51. Kg5 {[%emt 0:00:00]} Ne3 {[%emt 0:00:00]} 52. h5 {[%emt 0:00:00]} Nf5 {[%emt 0:00:00]} 53. c4 {[%emt 0:00:00]} bxc4 {[%emt 0:00:00]} 54. Kf6 {[%emt 0:00:00]} Kb2 {[%emt 0:00:00]} 55. Kxe6 {[%emt 0:05:58]} Ng7+ {[%emt 0:00:00]} 56. Kd6 {[%emt 0:00:00]} Nxh5 {[%emt 0:00:00]} 57. Kxc6 {[%emt 0:00:00]} c3 {[%emt 0:00:00]} 58. d5 {[%emt 0:00:00]} c2 {[%emt 0:00:00]} 59. Bd2 {[%emt 0:00:00]} c1=Q+ {[%emt 0:00:00]} 60. Bxc1+ {[%emt 0:00:00]} Kxc1 {[%emt 0:00:00]} 0-1

[Event "FIN-ch 2019"]
[Site "Helsinki"]
[Date "2019.06.14"]
[Round "5.2"]
[White "Nyysti, Sampsa"]
[Black "Ronka, Erik"]
[Result "0-1"]
[ECO "B12"]
[WhiteElo "2320"]
[BlackElo "2270"]
[Annotator "ChessBase"]
[PlyCount "80"]
[EventDate "2019.06.10"]
[EventType "swiss"]
[EventCountry "FIN"]
[SourceTitle "playchess.com"]
[Source "ChessBase"]
[SourceQuality "1"]
[TimeControl "40/5400+30:1800+30"]

1. e4 {[%emt 0:00:00]} c6 {[%emt 0:00:00]} 2. d4 {[%emt 0:00:00]} d5 {[%emt 0:00:00]} 3. e5 {[%emt 0:00:17]} c5 {[%emt 0:00:00]} 4. dxc5 {[%emt 0:01:13]} e6 {[%emt 0:00:00]} 5. a3 {[%emt 0:01:12]} Nc6 {[%emt 0:00:27]} 6. Nf3 {[%emt 0:01:29]} Bxc5 {[%emt 0:00:03]} 7. b4 {[%emt 0:00:24]} Bb6 {[%emt 0:00:02]} 8. Bb2 {[%emt 0:02:18]} Nge7 {[%emt 0:00:03]} 9. Bd3 {[%emt 0:01:43]} Ng6 {[%emt 0:00:01]} 10. O-O {[%emt 0:01:40]} Nf4 {[%emt 0:00:02]} 11. Re1 {[%emt 0:01:57]} Nxd3 {[%emt 0:01:48]} 12. cxd3 {[%emt 0:01:19]} O-O {[%emt 0:01:04]} 13. Nbd2 {[%emt 0:00:22]} Bd7 {[%emt 0:00:40]} 14. Nb3 {[%emt 0:00:33]} Rc8 {[%emt 0:03:59]} 15. d4 {[%emt 0:01:51]} Ne7 {[%emt 0:04:07]} 16. Nc5 {[%emt 0:00:21]} Rc7 {[%emt 0:01:00]} 17. Qd3 {[%emt 0:07:56]} a5 {[%emt 0:07:31]} 18. Bc1 {[%emt 0:01:53]} Ng6 {[%emt 0:11:03]} 19. Bg5 {[%emt 0:00:53]} Qe8 {[%emt 0:00:30]} 20. h4 {[%emt 0:03:17]} h6 {[%emt 0:06:41]} 21. Bd2 {[%emt 0:04:19]} Bb5 {[%emt 0:03:26]} 22. Qe3 {[%emt 0:00:51]} axb4 {[%emt 0:11:55]} 23. axb4 {[%emt 0:01:27]} Qe7 {[%emt 0:11:46]} 24. g3 {[%emt 0:00:14]} Rb8 {[%emt 0:01:29]} 25. Nh2 {[%emt 0:02:24]} Rcc8 {[%emt 0:05:01]} 26. Ng4 {[%emt 0:02:55]} Bd8 {[%emt 0:01:03]} 27. Ra3 {[%emt 0:08:45]} b6 {[%emt 0:01:15]} 28. Nd3 {[%emt 0:00:08]} Ra8 {[%emt 0:04:47]} 29. Rea1 {[%emt 0:00:53]} Rxa3 {[%emt 0:01:04]} 30. Rxa3 {[%emt 0:00:02]} Qc7 {[%emt 0:01:00]} 31. Ne1 {[%emt 0:23:08]} Ne7 {[%emt 0:01:53]} 32. Rc3 {[%emt 0:07:58]} Qd7 {[%emt 0:02:39]} 33. Nf3 {[%emt 0:00:35]} Rxc3 {[%emt 0:01:44]} 34. Bxc3 {[%emt 0:00:53]} Nc6 {[%emt 0:01:46]} 35. Bd2 {[%emt 0:12:21]} Qa7 {[%emt 0:04:07]} 36. Qe1 {[%emt 0:04:02]} Qa3 {[%emt 0:00:51]} 37. Kg2 {[%emt 0:01:21]} Be7 {[%emt 0:01:13]} 38. Bxh6 {[%emt 0:02:16]} gxh6 {[%emt 0:00:59]} 39. Qd2 {[%emt 0:00:30]} Bf1+ {[%emt 0:05:53]} 40. Kxf1 {[%emt 0:00:27]} Qxf3 {[%emt 0:00:03]} 0-1

[Event "FIN-ch 2019"]
[Site "Helsinki"]
[Date "2019.06.14"]
[Round "5.3"]
[White "Koykka, Pekka"]
[Black "Norri, Joose"]
[Result "1-0"]
[ECO "D60"]
[WhiteElo "2399"]
[BlackElo "2271"]
[Annotator "ChessBase"]
[PlyCount "75"]
[EventDate "2019.06.10"]
[EventType "swiss"]
[EventCountry "FIN"]
[SourceTitle "playchess.com"]
[Source "ChessBase"]
[SourceQuality "1"]
[TimeControl "40/5400+30:1800+30"]

1. d4 {[%emt 0:00:19]} d5 {[%emt 0:02:28]} 2. c4 {[%emt 0:00:08]} c6 {[%emt 0:05:07]} 3. Nf3 {[%emt 0:00:09]} Nf6 {[%emt 0:00:08]} 4. Qb3 {[%emt 0:00:19]} e6 {[%emt 0:03:04]} 5. Bg5 {[%emt 0:00:09]} Nbd7 {[%emt 0:10:26]} 6. Nc3 {[%emt 0:00:33]} Be7 {[%emt 0:02:12]} 7. e3 {[%emt 0:01:19]} O-O {[%emt 0:00:42]} 8. Bd3 {[%emt 0:03:41]} dxc4 {[%emt 0:04:24]} 9. Qxc4 {[%emt 0:07:58]} c5 {[%emt 0:08:19]} 10. dxc5 {[%emt 0:15:09]} Bxc5 {[%emt 0:13:11]} 11. Qh4 {[%emt 0:14:35]} Qb6 {[%emt 0:03:41]} 12. O-O-O {[%emt 0:04:49]} Qb4 {[%emt 0:08:40]} 13. Bf4 {[%emt 0:23:15]} a6 {[%emt 0:07:09]} 14. Bc2 {[%emt 0:07:13]} Re8 {[%emt 0:04:48]} 15. Nd2 {[%emt 0:09:19]} Be7 {[%emt 0:04:46]} 16. a3 {[%emt 0:04:39]} Qc5 {[%emt 0:00:18]} 17. Nb3 {[%emt 0:00:21]} Qb6 {[%emt 0:03:33]} 18. Qg3 {[%emt 0:02:23]} Nh5 {[%emt 0:07:52]} 19. Qh3 {[%emt 0:00:29]} g6 {[%emt 0:00:45]} 20. Bh6 {[%emt 0:00:57]} Nc5 {[%emt 0:02:27]} 21. Nd2 {[%emt 0:01:04]} Bf6 {[%emt 0:02:15]} 22. e4 {[%emt 0:00:49]} Qc7 {[%emt 0:01:14]} 23. Qe3 {[%emt 0:00:31]} b5 {[%emt 0:00:55]} 24. g4 {[%emt 0:00:29]} Ng7 {[%emt 0:00:12]} 25. f4 {[%emt 0:00:24]} Bb7 {[%emt 0:00:36]} 26. h4 {[%emt 0:01:08]} Qb6 {[%emt 0:00:39]} 27. Rh3 {[%emt 0:00:18]} b4 {[%emt 0:00:13]} 28. Nc4 {[%emt 0:00:29]} Qc7 {[%emt 0:00:29]} 29. axb4 {[%emt 0:00:18]} Nd7 {[%emt 0:01:28]} 30. Nd6 {[%emt 0:00:21]} Reb8 {[%emt 0:00:49]} 31. e5 {[%emt 0:00:50]} Be7 {[%emt 0:00:01]} 32. h5 {[%emt 0:00:19]} Bc6 {[%emt 0:01:06]} 33. hxg6 {[%emt 0:00:09]} fxg6 {[%emt 0:00:13]} 34. Bxg7 {[%emt 0:00:23]} Kxg7 {[%emt 0:00:01]} 35. f5 {[%emt 0:00:13]} Kg8 {[%emt 0:00:24]} 36. Qh6 {[%emt 0:01:11]} Nf8 {[%emt 0:00:20]} 37. fxg6 {[%emt 0:00:35]} Bxd6 {[%emt 0:00:46]} 38. gxh7+ {[%emt 0:00:24]} 1-0

[Event "FIN-ch 2019"]
[Site "Helsinki"]
[Date "2019.06.14"]
[Round "5.4"]
[White "Luukkonen, Tommi"]
[Black "Hokkanen, Petri"]
[Result "0-1"]
[ECO "B11"]
[WhiteElo "2330"]
[BlackElo "2199"]
[Annotator "NA"]
[PlyCount "90"]
[EventDate "2019.06.10"]
[EventType "swiss"]
[EventCountry "FIN"]
[SourceTitle "playchess.com"]
[Source "ChessBase"]
[SourceQuality "1"]
[TimeControl "40/5400+30:1800+30"]

1. e4 {[%emt 1:30:30]} c6 {[%emt 1:30:30]} 2. Nc3 {[%emt 0:00:30]} d5 {[%emt 0:00:30]} 3. Nf3 {[%emt 0:00:30]} Bg4 {[%emt 0:00:30]} 4. h3 {[%emt 0:00:30]} Bxf3 {[%emt 0:00:30]} 5. Qxf3 {[%emt 0:00:30]} e6 {[%emt 0:00:30]} 6. d3 {[%emt 0:00:30]} Nd7 {[%emt 0:00:30]} 7. Bd2 {[%emt 0:00:30]} Ngf6 {[%emt 0:00:30]} 8. g4 {[%emt 0:00:30]} h6 {[%emt 0:00:30]} 9. h4 {[%emt 0:00:30]} Qb6 {[%emt 0:00:30]} 10. O-O-O {[%emt 0:00:30]} Ne5 {[%emt 0:00:30]} 11. Qg3 {[%emt 0:00:30]} Nexg4 {[%emt 0:00:30]} 12. exd5 {[%emt 0:00:30]} Nxf2 {[%emt 0:00:30]} 13. Bh3 {[%emt 0:00:30]} Nxh1 {[%emt 0:00:30]} 14. Rxh1 {[%emt 0:00:30]} cxd5 {[%emt 0:00:30]} 15. Be3 {[%emt 0:00:30]} Qd6 {[%emt 0:00:30]} 16. Bf4 {[%emt 0:00:30]} Qc6 {[%emt 0:00:30]} 17. Qf2 {[%emt 0:00:30]} Bc5 {[%emt 0:00:30]} 18. Qe2 {[%emt 0:00:30]} O-O-O {[%emt 0:00:30]} 19. d4 {[%emt 0:00:30]} Bd6 {[%emt 0:00:30]} 20. Be3 {[%emt 0:00:30]} a6 {[%emt 0:00:30]} 21. Rg1 {[%emt 0:00:30]} Rhg8 {[%emt 0:00:30]} 22. Bg2 {[%emt 0:00:30]} Kb8 {[%emt 0:00:30]} 23. Rf1 {[%emt 0:00:30]} Qc4 {[%emt 0:00:30]} 24. Qd1 {[%emt 0:00:30]} Bb4 {[%emt 0:00:30]} 25. Bf4+ {[%emt 0:00:30]} Ka7 {[%emt 0:00:30]} 26. Rf3 {[%emt 0:00:30]} Rc8 {[%emt 0:00:30]} 27. Bf1 {[%emt 0:00:30]} Qc6 {[%emt 0:00:30]} 28. Be5 {[%emt 0:00:30]} Nd7 {[%emt 0:00:30]} 29. Bg3 {[%emt 0:00:30]} Nb6 {[%emt 0:00:30]} 30. Ne2 {[%emt 0:00:30]} f5 {[%emt 0:00:30]} 31. h5 {[%emt 0:00:30]} Nc4 {[%emt 0:00:30]} 32. Rd3 {[%emt 0:00:30]} Qa4 {[%emt 0:00:30]} 33. Kb1 {[%emt 0:00:30]} Rc6 {[%emt 0:00:30]} 34. Nc1 {[%emt 0:00:30]} Rgc8 {[%emt 0:00:30]} 35. Nb3 {[%emt 0:00:30]} Ba3 {[%emt 0:00:30]} 36. bxa3 {[%emt 0:00:30]} Nxa3+ {[%emt 0:00:30]} 37. Ka1 {[%emt 0:00:30]} Nxc2+ {[%emt 0:00:30]} 38. Kb1 {[%emt 0:00:30]} Nb4 {[%emt 0:00:30]} 39. Rd2 {[%emt 0:00:30]} Rc2 {[%emt 0:00:30]} 40. Rxc2 {[%emt 0:00:30]} Rxc2 {[%emt 0:00:30]} 41. Qxc2 {[%emt 0:30:30]} Nxc2 {[%emt 0:30:30]} 42. Kxc2 {[%emt 0:00:30]} Qxa2+ {[%emt 0:00:30]} 43. Kc3 {[%emt 0:00:30]} a5 {[%emt 0:00:30]} 44. Be5 {[%emt 0:00:30]} a4 {[%emt 0:00:30]} 45. Nd2 {[%emt 0:00:30]} Qa1+ {[%emt 0:00:30]} 0-1

[Event "FIN-ch 2019"]
[Site "Helsinki"]
[Date "2019.06.14"]
[Round "5.5"]
[White "Agopov, Mikael"]
[Black "Jarvenpaa, Jari"]
[Result "1-0"]
[ECO "B12"]
[WhiteElo "2432"]
[BlackElo "2204"]
[Annotator "ChessBase"]
[PlyCount "47"]
[EventDate "2019.06.10"]
[EventType "swiss"]
[EventCountry "FIN"]
[SourceTitle "playchess.com"]
[Source "ChessBase"]
[SourceQuality "1"]
[TimeControl "40/5400+30:1800+30"]

1. e4 {[%emt 0:00:00]} c6 {[%emt 0:00:00]} 2. d4 {[%emt 0:00:00]} d5 {[%emt 0:00:11]} 3. e5 {[%emt 0:00:00]} c5 {[%emt 0:00:10]} 4. dxc5 {[%emt 0:00:00]} Nc6 {[%emt 0:00:04]} 5. Be3 {[%emt 0:00:40]} Nxe5 {[%emt 0:03:20]} 6. Bb5+ {[%emt 0:01:34]} Nc6 {[%emt 0:03:55]} 7. c4 {[%emt 0:01:38]} a6 {[%emt 0:13:31]} 8. Ba4 {[%emt 0:05:19]} Be6 {[%emt 0:12:36]} 9. Nf3 {[%emt 0:02:44]} dxc4 {[%emt 0:04:15]} 10. O-O {[%emt 0:03:12]} Qc7 {[%emt 0:04:18]} 11. Qe2 {[%emt 0:07:16]} Nf6 {[%emt 0:02:41]} 12. Nbd2 {[%emt 0:11:47]} c3 {[%emt 0:06:10]} 13. Nc4 {[%emt 0:05:40]} g6 {[%emt 0:10:27]} 14. Ng5 {[%emt 0:18:01]} Ng4 {[%emt 0:13:44]} 15. Nd6+ {[%emt 0:08:28]} exd6 {[%emt 0:00:26]} 16. Nxe6 {[%emt 0:00:02]} fxe6 {[%emt 0:00:42]} 17. Qxg4 {[%emt 0:00:04]} cxb2 {[%emt 0:02:56]} 18. Rab1 {[%emt 0:12:22]} O-O-O {[%emt 0:09:10]} 19. cxd6 {[%emt 0:07:29]} Bxd6 {[%emt 0:02:28]} 20. Rxb2 {[%emt 0:00:07]} Qg7 {[%emt 0:05:44]} 21. Qxe6+ {[%emt 0:02:21]} Qd7 {[%emt 0:00:33]} 22. Qc4 {[%emt 0:01:30]} Bc7 {[%emt 0:02:22]} 23. Rxb7 {[%emt 0:01:40]} Qd6 {[%emt 0:01:11]} 24. Rxc7+ {[%emt 0:00:25]} 1-0

[Event "FIN-ch 2019"]
[Site "Helsinki"]
[Date "2019.06.14"]
[Round "5.6"]
[White "Tiitta, Sauli"]
[Black "Lahdelma, Henri"]
[Result "1/2-1/2"]
[ECO "A00"]
[WhiteElo "2214"]
[BlackElo "2188"]
[Annotator "NA"]
[PlyCount "47"]
[EventDate "2019.06.10"]
[EventType "swiss"]
[EventCountry "FIN"]
[SourceTitle "playchess.com"]
[Source "ChessBase"]
[SourceQuality "1"]
[TimeControl "40/5400+30:1800+30"]

1. g4 {[%emt 1:30:30]} d5 {[%emt 1:30:30]} 2. c4 {[%emt 0:00:30]} dxc4 {[%emt 0:00:30]} 3. Bg2 {[%emt 0:00:30]} Nc6 {[%emt 0:00:30]} 4. h3 {[%emt 0:00:30]} e5 {[%emt 0:00:30]} 5. Bxc6+ {[%emt 0:00:30]} bxc6 {[%emt 0:00:30]} 6. Qa4 {[%emt 0:00:30]} Qd6 {[%emt 0:00:30]} 7. Nc3 {[%emt 0:00:30]} h5 {[%emt 0:00:30]} 8. g5 {[%emt 0:00:30]} Be6 {[%emt 0:00:30]} 9. Nf3 {[%emt 0:00:30]} Ne7 {[%emt 0:00:30]} 10. b3 {[%emt 0:00:30]} Bd7 {[%emt 0:00:30]} 11. bxc4 {[%emt 0:00:30]} Ng6 {[%emt 0:00:30]} 12. Qa5 {[%emt 0:00:30]} Qb4 {[%emt 0:00:30]} 13. Qa6 {[%emt 0:00:30]} Be7 {[%emt 0:00:30]} 14. Rb1 {[%emt 0:00:30]} Qd6 {[%emt 0:00:30]} 15. Ne4 {[%emt 0:00:30]} Qe6 {[%emt 0:00:30]} 16. d3 {[%emt 0:00:30]} O-O {[%emt 0:00:30]} 17. Kd1 {[%emt 0:00:30]} Bd6 {[%emt 0:00:30]} 18. Qa5 {[%emt 0:00:30]} Rfb8 {[%emt 0:00:30]} 19. Rxb8+ {[%emt 0:00:30]} Rxb8 {[%emt 0:00:30]} 20. Qxa7 {[%emt 0:00:30]} Qe8 {[%emt 0:00:30]} 21. c5 {[%emt 0:00:30]} Bf8 {[%emt 0:00:30]} 22. Qxc7 {[%emt 0:00:30]} Rc8 {[%emt 0:00:30]} 23. Qb7 {[%emt 0:00:30]} Rb8 {[%emt 0:00:30]} 24. Qc7 {[%emt 0:00:30]} 1/2-1/2